bitfinex-derivatives/quotes_BTCF0:USTF0_20250609
["timestamp","ask_amount","ask_price","bid_price","bid_amount"]
[1749503835647,0.83468,109360.0,109350.0,0.49936335]
[1749503835847,0.83468,109360.0,109350.0,0.50036335]
[1749503836048,0.5449763,109360.0,109350.0,0.50036335]
[1749503836247,1.0174563,109360.0,109350.0,0.50036335]
[1749503836550,0.0014,109360.0,109350.0,0.49936335]
[1749503836748,0.47388,109360.0,109350.0,0.49936335]
[1749503836942,0.47348,109360.0,109350.0,0.49936335]
[1749503837142,0.47388,109360.0,109350.0,0.745404]
[1749503837342,0.47348,109360.0,109350.0,0.97253721]
[1749503837842,0.0014,109360.0,109350.0,0.97253721]
[1749503838437,0.0014,109360.0,109350.0,0.97353721]
[1749503838839,0.8373366,109370.0,109350.0,0.97353721]
[1749503838840,0.8373366,109370.0,109360.0,0.1827764]
[1749503839045,0.8372966,109370.0,109360.0,0.77104282]
[1749503839248,0.0040566,109370.0,109360.0,1.24421668]
[1749503839545,0.0044566,109370.0,109360.0,1.33558171]
[1749503839745,0.0044566,109370.0,109360.0,1.22328282]
[1749503839946,0.0040566,109370.0,109360.0,1.22328282]
[1749503840153,0.0054566,109370.0,109360.0,1.33556094]
[1749503840549,0.98257834,109380.0,109370.0,0.1827597]
[1749503840852,0.98257834,109380.0,109370.0,0.49569291]
[1749503841153,0.83324,109380.0,109370.0,0.60797103]
[1749503841452,0.83364,109380.0,109370.0,0.49569291]
[1749503841651,0.47284,109380.0,109370.0,0.49569291]
[1749503841852,0.0014,109380.0,109370.0,0.49569291]
[1749503842053,0.0024,109380.0,109370.0,0.96877103]
[1749503842551,0.0024,109380.0,109370.0,0.60797103]
[1749503842954,0.002,109380.0,109370.0,0.60797103]
[1749503843355,0.0024,109380.0,109370.0,0.96877103]
[1749503843848,0.0024,109380.0,109370.0,0.60797103]
[1749503845248,0.0024,109380.0,109370.0,0.63626465]
[1749503845449,0.002,109380.0,109370.0,0.63626465]
[1749503845758,0.0024,109380.0,109370.0,0.7486486]
[1749503845955,0.0024,109380.0,109370.0,0.60807686]
[1749503847254,0.0024,109380.0,109370.0,0.38094365]
[1749503847454,0.0024,109380.0,109370.0,0.60807686]
[1749503849963,0.002,109380.0,109370.0,0.96887686]
[1749503850259,0.0024,109380.0,109370.0,0.85649291]
[1749503850454,0.0024,109380.0,109370.0,0.99706465]
[1749503850858,0.00013764,109390.0,109380.0,0.1827429]
[1749503851050,0.00013764,109390.0,109380.0,1.37011611]
[1749503851255,4e-08,109390.0,109380.0,1.58822011]
[1749503851456,0.00040004,109390.0,109380.0,1.70046757]
[1749503852158,0.00340004,109390.0,109380.0,1.70046757]
[1749503852558,4e-08,109390.0,109380.0,1.72879185]
[1749503852765,4e-08,109390.0,109380.0,1.50165864]
[1749503852962,4e-08,109390.0,109380.0,1.72879185]
[1749503853268,0.00040004,109390.0,109380.0,1.72879185]
[1749503853853,0.364108,109410.0,109400.0,0.1827094]
[1749503853854,1.5,109410.0,109400.0,0.1827094]
[1749503854151,1.5004,109410.0,109400.0,0.81262163]
[1749503854357,1.5004,109410.0,109400.0,1.53085484]
[1749503854555,1.50165775,109410.0,109400.0,1.7908118]
[1749503854756,1.50165775,109410.0,109400.0,1.8929818]
[1749503854957,1.50125775,109410.0,109400.0,1.8929818]
[1749503855157,0.3608,109430.0,109420.0,0.1826761]
[1749503855357,0.3608,109430.0,109420.0,0.40980931]
[1749503855554,0.3608,109430.0,109420.0,0.49790931]
[1749503856157,0.3608,109430.0,109420.0,0.1826761]
[1749503856365,0.2708594,109430.0,109420.0,0.1826761]
[1749503856663,0.92108,109430.0,109420.0,0.40980931]
[1749503856869,0.6316594,109430.0,109420.0,0.40980931]
[1749503857565,0.6316594,109430.0,109420.0,0.1826761]
[1749503858358,1.2301794,109430.0,109420.0,0.1826761]
[1749503859162,1.2301394,109430.0,109420.0,0.1826761]
[1749503859365,1.2305394,109430.0,109420.0,0.1826761]
[1749503859772,1.23179693,109430.0,109420.0,0.1826761]
[1749503860565,0.182676,109420.0,109410.0,0.54682361]
[1749503860765,0.67513353,109420.0,109410.0,0.54682361]
[1749503861368,0.67513353,109420.0,109410.0,0.2283483]
[1749503861577,0.67513353,109420.0,109410.0,0.45548151]
[1749503861969,0.67613353,109420.0,109410.0,0.45548151]
[1749503862170,0.36305753,109420.0,109410.0,0.45548151]
[1749503862376,0.36305753,109420.0,109410.0,0.54518151]
[1749503862676,0.36345753,109420.0,109410.0,0.54518151]
[1749503862976,0.54573443,109420.0,109410.0,0.54518151]
[1749503863177,0.54613443,109420.0,109410.0,0.54518151]
[1749503863368,0.58953443,109420.0,109410.0,0.54518151]
[1749503863568,0.36345753,109420.0,109410.0,0.54518151]
[1749503864370,0.00265753,109420.0,109410.0,0.54518151]
[1749503864877,0.00265753,109420.0,109410.0,0.90598151]
[1749503865078,0.00351506,109420.0,109410.0,0.90598151]
[1749503865269,0.00391506,109420.0,109410.0,0.90598151]
[1749503865570,0.3608,109430.0,109420.0,0.1826769]
[1749503865876,0.3608,109430.0,109420.0,0.54191011]
[1749503866077,0.3612,109430.0,109420.0,0.54191011]
[1749503866277,0.07165297,109440.0,109430.0,0.1826602]
[1749503866573,0.63980292,109460.0,109450.0,0.1826268]
[1749503867072,0.72620292,109460.0,109450.0,0.1826268]
[1749503867775,0.1826273,109450.0,109440.0,0.50108381]
[1749503867974,1.1454673,109450.0,109440.0,0.50108381]
[1749503868370,1.1454673,109450.0,109430.0,0.1342615]
[1749503868371,0.182644,109440.0,109430.0,0.2739716]
[1749503868574,0.631144,109440.0,109430.0,0.50110481]
[1749503870376,0.1826607,109430.0,109420.0,0.45561325]
[1749503870570,0.71323018,109440.0,109430.0,0.1826607]
[1749503870571,0.76252018,109440.0,109430.0,0.1826607]
[1749503870770,0.76252018,109440.0,109430.0,0.40979391]
[1749503870977,0.1826607,109430.0,109420.0,0.31980594]
[1749503871172,0.6544207,109430.0,109420.0,0.50127025]
[1749503871379,0.65567818,109430.0,109420.0,0.51497025]
[1749503871574,0.65567818,109430.0,109420.0,0.01383764]
[1749503871575,1.01647818,109430.0,109420.0,0.01383764]
[1749503871767,1.01647818,109430.0,109420.0,0.20107504]
[1749503871968,1.24361139,109430.0,109420.0,0.01839764]
[1749503872172,1.62435922,109430.0,109420.0,0.01839764]
[1749503872372,1.5,109420.0,109390.0,0.54670991]
[1749503872573,0.1827108,109400.0,109390.0,0.54670991]
[1749503872881,0.1827108,109400.0,109390.0,0.90750991]
[1749503873277,0.1827108,109400.0,109390.0,0.50120991]
[1749503873477,0.18396828,109400.0,109390.0,0.2760767]
[1749503873678,0.18396828,109400.0,109390.0,0.50320991]
[1749503874384,0.54476828,109400.0,109390.0,0.2333951]
[1749503874582,0.54476828,109400.0,109390.0,0.1877281]
[1749503875782,0.54553167,109400.0,109390.0,0.1877281]
[1749503875976,0.54553167,109400.0,109390.0,0.41486131]
[1749503875977,0.00202087,109400.0,109390.0,0.41486131]
[1749503876171,0.18473277,109400.0,109390.0,0.41486131]
[1749503876384,0.65645277,109400.0,109390.0,0.50066131]
[1749503876587,0.73136375,109400.0,109390.0,0.86146131]
[1749503876778,0.25964375,109400.0,109390.0,0.6343281]
[1749503876977,0.73136375,109400.0,109390.0,0.6343281]
[1749503877176,0.07693185,109400.0,109390.0,0.86146131]
[1749503877479,0.07653185,109400.0,109390.0,0.86146131]
[1749503877674,0.07693185,109400.0,109390.0,0.90316131]
[1749503878683,7e-08,109400.0,109390.0,1.24236945]
[1749503878976,0.00040007,109400.0,109390.0,1.24236945]
[1749503879774,0.00040007,109400.0,109390.0,1.13029452]
[1749503879977,0.00040007,109400.0,109390.0,1.27086626]
[1749503880270,0.00040007,109400.0,109390.0,0.81659984]
[1749503880477,0.00040007,109400.0,109390.0,1.34549416]
[1749503880671,0.00040007,109400.0,109390.0,0.89122774]
[1749503880880,7e-08,109400.0,109390.0,1.34549416]
[1749503881077,7e-08,109400.0,109390.0,1.43690216]
[1749503881685,7e-08,109400.0,109390.0,1.90858216]
[1749503881878,7e-08,109400.0,109390.0,1.54087721]
[1749503882083,0.00040007,109400.0,109390.0,1.68144895]
[1749503882289,0.00040007,109400.0,109390.0,1.20976895]
[1749503882478,0.00040007,109400.0,109390.0,1.80788895]
[1749503882674,0.00040007,109400.0,109390.0,1.20976895]
[1749503882878,0.00040007,109400.0,109390.0,1.11836095]
[1749503883081,0.00040007,109400.0,109390.0,1.71648095]
[1749503883883,0.00040007,109400.0,109390.0,1.57590921]
[1749503884384,0.00040007,109400.0,109390.0,1.71648095]
[1749503884584,0.00040007,109400.0,109390.0,1.57590921]
[1749503885088,0.00040007,109400.0,109390.0,0.97778921]
[1749503885382,0.00040007,109400.0,109390.0,1.222256]
[1749503885587,0.18311187,109400.0,109390.0,0.42749138]
[1749503885786,0.54391187,109400.0,109390.0,0.005]
[1749503886476,1.42331945,109400.0,109390.0,0.005]
[1749503886683,1.14405169,109400.0,109390.0,0.005]
[1749503887184,0.78325169,109400.0,109390.0,0.1877292]
[1749503887479,0.74397824,109400.0,109390.0,0.1877292]
[1749503887684,0.78667824,109400.0,109390.0,0.005]
[1749503887882,0.78667824,109400.0,109390.0,0.1877292]
[1749503888383,0.87081536,109400.0,109390.0,0.1877292]
[1749503888684,1.31999635,109400.0,109390.0,0.1877292]
[1749503888892,1.31959635,109400.0,109390.0,0.1877292]
[1749503889090,0.95919635,109400.0,109390.0,0.1877292]
[1749503889285,1.31999635,109400.0,109390.0,0.1877292]
[1749503889475,1.31999635,109400.0,109390.0,0.23213321]
[1749503889785,1.26413824,109400.0,109390.0,0.1877292]
[1749503890579,1.30643824,109400.0,109390.0,0.005]
[1749503890782,1.30643824,109400.0,109390.0,0.1877292]
[1749503891593,1.30643824,109400.0,109390.0,0.1877291]
[1749503892685,0.0427,109400.0,109390.0,0.41486231]
[1749503892982,0.65435334,109410.0,109400.0,0.1827124]
[1749503893185,0.00013764,109410.0,109400.0,1.08727882]
[1749503893381,0.00013764,109410.0,109400.0,1.13047882]
[1749503893579,0.00053764,109410.0,109400.0,1.13047882]
[1749503893785,0.18323334,109410.0,109400.0,1.13047882]
[1749503893981,0.54403334,109410.0,109400.0,0.54254561]
[1749503894186,0.18323334,109410.0,109400.0,0.54254561]
[1749503894377,0.18323334,109410.0,109400.0,0.54354561]
[1749503894578,0.18323334,109410.0,109400.0,0.3184124]
[1749503894785,0.18323334,109410.0,109400.0,0.54554561]
[1749503895288,0.18323334,109410.0,109400.0,0.41284561]
[1749503895487,0.27473334,109410.0,109400.0,0.41284561]
[1749503895691,0.63553334,109410.0,109400.0,0.1857124]
[1749503895889,2.13553334,109410.0,109400.0,0.41284561]
[1749503896394,2.13553334,109410.0,109400.0,0.1857124]
[1749503896585,2.13553334,109410.0,109400.0,0.41284561]
[1749503896784,2.64849334,109410.0,109400.0,0.41284561]
[1749503896980,2.64845334,109410.0,109400.0,0.50054561]
[1749503897279,2.64885334,109410.0,109400.0,0.50054561]
[1749503897483,1.8612,109410.0,109400.0,0.50054561]
[1749503897682,2.33264,109410.0,109400.0,0.72767882]
[1749503897894,2.33224,109410.0,109400.0,0.54304561]
[1749503898094,2.5153358,109410.0,109400.0,0.54304561]
[1749503898994,2.1545358,109410.0,109400.0,0.90384561]
[1749503899486,1.5004,109410.0,109400.0,0.90384561]
[1749503899691,0.4718,109410.0,109400.0,0.6767124]
[1749503899991,0.12624,109420.0,109410.0,0.1826958]
[1749503900192,0.4514799,109430.0,109420.0,0.1826791]
[1749503900383,1.08825298,109430.0,109420.0,0.40981231]
[1749503900584,1.08865298,109430.0,109420.0,0.40981231]
[1749503900779,1.44945298,109430.0,109420.0,0.40981231]
[1749503901193,1.44945298,109430.0,109420.0,0.1826791]
[1749503901395,0.85185298,109430.0,109420.0,0.40981231]
[1749503901693,1.44945298,109430.0,109420.0,0.40981231]
[1749503901890,0.61884,109430.0,109420.0,0.40981231]
[1749503902093,1.2732606,109430.0,109420.0,0.40981231]
[1749503902394,1.2732606,109430.0,109420.0,0.1826791]
[1749503903097,0.9124606,109430.0,109420.0,0.40981231]
[1749503903391,0.64162,109430.0,109420.0,0.40981231]
[1749503903596,0.64202,109430.0,109420.0,0.49841231]
[1749503903990,0.64162,109430.0,109420.0,0.49841231]
[1749503904196,0.0445,109430.0,109420.0,0.49841231]
[1749503904396,0.6539414,109430.0,109420.0,0.49841231]
[1749503904587,0.6543414,109430.0,109420.0,0.3168791]
[1749503904789,1.0151414,109430.0,109420.0,0.54401231]
[1749503904994,1.0151414,109430.0,109420.0,0.49841231]
[1749503905194,1.0577414,109430.0,109420.0,0.49841231]
[1749503905388,1.1013414,109430.0,109420.0,0.1826791]
[1749503906396,0.6300614,109430.0,109420.0,0.40981231]
[1749503906606,1.2275014,109430.0,109420.0,0.40981231]
[1749503907992,1.2275014,109430.0,109420.0,0.1826791]
[1749503908696,0.4474,109430.0,109420.0,0.40981231]
[1749503908894,1.0149813,109430.0,109420.0,0.50261231]
[1749503909099,1.0149813,109430.0,109420.0,0.55701231]
[1749503909292,0.0004,109430.0,109420.0,0.55701231]
[1749503909489,0.6537813,109430.0,109420.0,0.55701231]
[1749503909699,0.6541813,109430.0,109420.0,0.55701231]
[1749503910095,0.1830613,109430.0,109420.0,0.55701231]
[1749503910303,0.6541813,109430.0,109420.0,0.55701231]
[1749503910690,0.0004,109430.0,109420.0,0.55701231]
[1749503910891,0.182659,109440.0,109430.0,0.1826613]
[1749503911094,0.653739,109440.0,109430.0,0.51159451]
[1749503911791,0.654139,109440.0,109430.0,0.51159451]
[1749503911996,1.014939,109440.0,109430.0,0.51159451]
[1749503912496,1.116039,109440.0,109430.0,0.51159451]
[1749503912692,0.705839,109440.0,109430.0,0.51159451]
[1749503913498,0.183059,109440.0,109430.0,0.51159451]
[1749503913811,1.014899,109440.0,109430.0,0.51159451]
[1749503915200,0.47144,109440.0,109430.0,0.51159451]
[1749503915400,0.1830446,109440.0,109430.0,0.51159451]
[1749503915703,0.0004,109440.0,109430.0,0.87239451]
[1749503916002,0.2282929,109450.0,109440.0,0.1826446]
[1749503916193,0.653595,109450.0,109440.0,0.51277781]
[1749503916398,0.653595,109450.0,109440.0,0.56597781]
[1749503917203,0.653555,109450.0,109440.0,0.56597781]
[1749503917411,0.182635,109450.0,109440.0,0.56597781]
[1749503917902,0.653555,109450.0,109440.0,0.56597781]
[1749503918103,0.182635,109450.0,109440.0,0.56597781]
[1749503918408,0.653515,109450.0,109440.0,0.56597781]
[1749503919199,0.182635,109450.0,109440.0,0.56597781]
[1749503919401,0.36587062,109460.0,109450.0,0.182628]
[1749503919605,0.47591062,109460.0,109450.0,0.87406121]
[1749503919999,0.47591062,109460.0,109450.0,0.51326121]
[1749503920202,0.00507062,109460.0,109450.0,0.87406121]
[1749503920413,0.65852192,109460.0,109450.0,0.87406121]
[1749503920606,0.47591062,109460.0,109450.0,0.87406121]
[1749503920805,0.47587062,109460.0,109450.0,0.87406121]
[1749503921001,0.00507062,109460.0,109450.0,0.87406121]
[1749503921409,0.47583062,109460.0,109450.0,0.646928]
[1749503921610,0.47583062,109460.0,109450.0,0.87406121]
[1749503921810,0.00705167,109470.0,109460.0,0.1826113]
[1749503922002,0.00705167,109470.0,109460.0,0.56404451]
[1749503922311,0.00745167,109470.0,109460.0,0.56404451]
[1749503922913,0.00705167,109470.0,109460.0,0.3369113]
[1749503923214,0.00745167,109470.0,109460.0,0.56404451]
[1749503925909,1.50745167,109470.0,109460.0,0.56404451]
[1749503926103,1.69004667,109470.0,109460.0,0.56404451]
[1749503926307,1.50745167,109470.0,109460.0,0.56404451]
[1749503927109,1.50745167,109470.0,109460.0,0.3369113]
[1749503927309,1.69004667,109470.0,109460.0,0.56404451]
[1749503927509,1.68964667,109470.0,109460.0,0.3369113]
[1749503927709,1.50745167,109470.0,109460.0,0.56404451]
[1749503928010,0.1826117,109460.0,109450.0,0.3150632]
[1749503928216,1.0646717,109460.0,109450.0,0.3150632]
[1749503928514,0.3608,109460.0,109450.0,0.54219641]
[1749503928712,0.3608,109460.0,109450.0,0.64299641]
[1749503928713,1.0139316,109460.0,109450.0,0.64299641]
[1749503929118,1.0143316,109460.0,109450.0,0.64299641]
[1749503929309,0.47052,109460.0,109450.0,1.09510701]
[1749503929615,0.7050316,109460.0,109450.0,0.6758632]
[1749503929814,0.7568316,109460.0,109450.0,0.90299641]
[1749503930516,0.52242,109460.0,109450.0,0.90299641]
[1749503930718,0.52242,109460.0,109450.0,0.95669641]
[1749503930908,0.52282,109460.0,109450.0,1.00719641]
[1749503931416,0.7054317,109460.0,109450.0,1.00719641]
[1749503931617,0.2349117,109460.0,109450.0,1.00719641]
[1749503932315,0.2841117,109460.0,109450.0,0.90299641]
[1749503932819,0.4099517,109460.0,109450.0,0.3150632]
[1749503936222,1.08924491,109460.0,109450.0,0.2694183]
[1749503936420,0.7362717,109460.0,109450.0,0.2694183]
[1749503936621,1.3325117,109460.0,109450.0,0.2694183]
[1749503937014,1.3324717,109460.0,109450.0,0.2694183]
[1749503937209,0.7362717,109460.0,109450.0,0.2694183]
[1749503937414,1.2411117,109460.0,109450.0,0.49655151]
[1749503937919,1.2411117,109460.0,109450.0,0.2694183]
[1749503938518,0.6449117,109460.0,109450.0,0.2694183]
[1749503938715,1.2410717,109460.0,109450.0,0.2694183]
[1749503939523,1.28056569,109460.0,109450.0,0.2694183]
[1749503939821,0.8802717,109460.0,109450.0,0.2694183]
[1749503940121,0.91976544,109460.0,109450.0,0.2694183]
[1749503940317,1.28056544,109460.0,109450.0,0.2694183]
[1749503941313,0.68440544,109460.0,109450.0,0.2694183]
[1749503941724,1.28052544,109460.0,109450.0,0.2694183]
[1749503942117,0.8802317,109460.0,109450.0,0.2694183]
[1749503942316,0.91974465,109460.0,109450.0,0.2694183]
[1749503942719,1.28054465,109460.0,109450.0,0.2694183]
[1749503943022,1.28054465,109460.0,109450.0,0.08679]
[1749503943222,0.89137243,109460.0,109450.0,0.2694183]
[1749503943423,1.28050465,109460.0,109450.0,0.2694183]
[1749503943817,0.68442465,109460.0,109450.0,0.2694183]
[1749503944019,0.14101295,109460.0,109450.0,0.47636608]
[1749503944230,0.52246,109460.0,109450.0,0.83716608]
[1749503944420,0.47016,109460.0,109450.0,0.99126608]
[1749503944619,0.47056,109460.0,109450.0,0.99126608]
[1749503944817,0.6531717,109460.0,109450.0,0.99126608]
[1749503947323,0.6531717,109460.0,109450.0,1.01058159]
[1749503947524,0.6531717,109460.0,109450.0,0.7843183]
[1749503947828,1.0139717,109460.0,109450.0,0.08679]
[1749503948022,1.1175717,109460.0,109450.0,0.2694183]
[1749503948225,1.15708027,109460.0,109450.0,0.2694183]
[1749503949224,1.38334356,109460.0,109450.0,0.08679]
[1749503949425,0.1826283,109450.0,109440.0,1e-08]
[1749503949622,1.03924016,109450.0,109440.0,1e-08]
[1749503949816,0.81297687,109450.0,109440.0,0.01078001]
[1749503950424,1.13060816,109450.0,109440.0,0.01078001]
[1749503950822,0.1826451,109440.0,109430.0,0.00456]
[1749503951022,1.63198059,109440.0,109400.0,0.80954628]
[1749503951230,1.63198059,109440.0,109400.0,0.2824838]
[1749503951231,0.1826952,109410.0,109400.0,0.2824838]
[1749503951426,0.7781752,109410.0,109400.0,0.50874709]
[1749503951733,0.7781752,109410.0,109400.0,0.61494709]
[1749503952035,0.7785752,109410.0,109400.0,0.61494709]
[1749503952221,0.8837752,109410.0,109400.0,0.61494709]
[1749503952620,0.8837752,109410.0,109400.0,0.50874709]
[1749503953021,0.95744916,109410.0,109400.0,0.51374709]
[1749503953528,0.00013764,109420.0,109400.0,1.25750448]
[1749503953718,0.2282971,109450.0,109440.0,0.2739476]
[1749503953924,0.7420382,109460.0,109450.0,0.1826284]
[1749503954120,0.85268856,109460.0,109450.0,0.40889169]
[1749503954324,0.85268856,109460.0,109450.0,0.1826284]
[1749503954635,1.08732856,109460.0,109450.0,0.1826284]
[1749503956027,1.44808856,109460.0,109450.0,0.1826284]
[1749503956337,0.85236988,109460.0,109450.0,0.1826284]
[1749503956532,0.95206988,109460.0,109450.0,0.1826284]
[1749503956833,0.1826284,109450.0,109440.0,1.06996943]
[1749503957034,0.1826284,109450.0,109440.0,0.84370614]
[1749503957424,0.2325284,109450.0,109440.0,0.84370614]
[1749503958027,0.2345284,109450.0,109440.0,0.79804544]
[1749503958425,0.2840284,109450.0,109440.0,0.00469764]
[1749503958629,0.54964829,109450.0,109440.0,0.00469764]
[1749503958830,0.87109169,109450.0,109440.0,0.00469764]
[1749503959031,0.91044966,109450.0,109440.0,0.00469764]
[1749503959332,0.96224966,109450.0,109440.0,0.00469764]
[1749503960534,1.37648966,109450.0,109440.0,0.00469764]
[1749503961230,1.39332559,109450.0,109440.0,0.00469764]
[1749503961440,1.48469359,109450.0,109440.0,0.00469764]
[1749503962339,2.07989359,109450.0,109440.0,0.00469764]
[1749503964233,1.98852559,109450.0,109440.0,0.00469764]
[1749503964428,1.39332559,109450.0,109440.0,0.00469764]
[1749503964633,1.98848559,109450.0,109440.0,0.00469764]
[1749503965227,1.7621823,109450.0,109440.0,0.00469764]
[1749503966744,1.98844559,109450.0,109440.0,0.00469764]
[1749503972437,2.03106126,109450.0,109440.0,0.00469764]
[1749503973437,0.1826618,109430.0,109420.0,0.0498]
[1749503973637,1.36460509,109430.0,109420.0,0.0498]
[1749503973831,0.1826618,109430.0,109420.0,0.45874169]
[1749503974035,0.7775418,109430.0,109420.0,0.56474169]
[1749503974434,0.7779418,109430.0,109420.0,0.56474169]
[1749503974635,0.1830618,109430.0,109420.0,0.1558]
[1749503974844,0.7779018,109430.0,109420.0,0.3384785]
[1749503975041,0.1830618,109430.0,109420.0,0.3384785]
[1749503975347,0.8171,109430.0,109420.0,0.3414785]
[1749503975845,1.1779,109430.0,109420.0,0.3414785]
[1749503977538,0.7779018,109430.0,109420.0,0.3414785]
[1749503978146,0.7773018,109430.0,109420.0,0.3414785]
[1749503978341,0.7769018,109430.0,109420.0,0.3414785]
[1749503978647,0.7773018,109430.0,109420.0,0.3414785]
[1749503978834,0.1830618,109430.0,109420.0,0.7022785]
[1749503979038,0.7772618,109430.0,109420.0,0.92854179]
[1749503979441,0.7772218,109430.0,109420.0,0.92854179]
[1749503979835,0.7768218,109430.0,109420.0,0.92854179]
[1749503980239,0.7772218,109430.0,109420.0,0.92854179]
[1749503982543,0.7771418,109430.0,109420.0,0.92854179]
[1749503984151,0.81592498,109430.0,109420.0,0.92854179]
[1749503984944,0.0004,109430.0,109420.0,0.92854179]
[1749503985249,0.46944,109430.0,109420.0,0.92854179]
[1749503985450,0.35341314,109440.0,109430.0,0.1826617]
[1749503985649,0.77674264,109440.0,109430.0,0.87502499]
[1749503986045,0.00013764,109440.0,109430.0,0.87502499]
[1749503986353,0.65218264,109440.0,109430.0,0.87502499]
[1749503986557,0.00053764,109440.0,109430.0,0.87502499]
[1749503986850,0.65214264,109440.0,109430.0,0.87502499]
[1749503987151,0.65174264,109440.0,109430.0,0.87502499]
[1749503987545,0.65214264,109440.0,109430.0,0.87502499]
[1749503987744,0.65214264,109440.0,109430.0,0.87602499]
[1749503987950,0.65214274,109440.0,109430.0,0.6497617]
[1749503988145,0.65214274,109440.0,109430.0,0.87602499]
[1749503989258,0.65202274,109440.0,109430.0,0.87602499]
[1749503989954,0.46937764,109440.0,109430.0,0.87602499]
[1749503990254,0.00053764,109440.0,109430.0,0.87602499]
[1749503990457,0.00013764,109440.0,109430.0,0.87602499]
[1749503990655,0.00053764,109440.0,109430.0,0.87602499]
[1749503991248,0.18318274,109440.0,109430.0,0.87602499]
[1749503991746,0.00053764,109440.0,109430.0,0.87602499]
[1749503992346,0.00013764,109440.0,109430.0,0.98828827]
[1749503992753,0.00053764,109440.0,109430.0,0.98828827]
[1749503993051,0.00053764,109440.0,109430.0,0.99234487]
[1749503993253,0.00053764,109440.0,109430.0,0.97295087]
[1749503995846,1.50053764,109440.0,109430.0,0.97295087]
[1749503998467,1.68318274,109440.0,109430.0,0.97295087]
[1749503999357,1.68318274,109440.0,109430.0,0.76608158]
[1749503999558,1.68318274,109440.0,109430.0,0.6538183]
[1749504000156,1.73408274,109440.0,109430.0,0.6538183]
[1749504000354,1.73408274,109440.0,109430.0,0.86068759]
[1749504001253,1.73408274,109440.0,109430.0,0.6538183]
[1749504001454,1.73408274,109440.0,109430.0,0.86068759]
[1749504001857,1.73408274,109440.0,109430.0,0.6538183]
[1749504002156,1.68318224,109440.0,109430.0,0.86068759]
[1749504002360,2.15146224,109440.0,109430.0,0.86068759]
[1749504002755,2.15146224,109440.0,109430.0,0.6538183]
[1749504002954,2.15146224,109440.0,109430.0,0.86068759]
[1749504004761,1.96881764,109440.0,109430.0,0.86068759]
[1749504004955,2.15146274,109440.0,109430.0,0.86068759]
[1749504006964,1.96881764,109440.0,109430.0,0.86068759]
[1749504007257,1.50053764,109440.0,109430.0,0.86068759]
[1749504007464,2.15086294,109440.0,109430.0,0.86068759]
[1749504007659,2.15126294,109440.0,109430.0,0.86068759]
[1749504007855,1.96861764,109440.0,109430.0,0.86068759]
[1749504008160,2.15126294,109440.0,109430.0,0.86068759]
[1749504008363,2.25416294,109440.0,109430.0,0.86068759]
[1749504009364,2.07151764,109440.0,109430.0,0.86068759]
[1749504009658,2.25416324,109440.0,109430.0,0.86068759]
[1749504012063,2.25400324,109440.0,109430.0,0.86068759]
[1749504012365,2.25400324,109440.0,109430.0,0.75538759]
[1749504012767,2.25400324,109440.0,109430.0,0.5485183]
[1749504013066,2.25400324,109440.0,109430.0,0.75538759]
[1749504013667,2.25400324,109440.0,109430.0,0.5485183]
[1749504013856,2.25400324,109440.0,109430.0,0.75538759]
[1749504017065,2.25400324,109440.0,109430.0,0.5485183]
[1749504017261,2.25400324,109440.0,109430.0,0.75538759]
[1749504020069,1.73528324,109440.0,109430.0,0.75538759]
[1749504020272,2.20288324,109440.0,109430.0,0.80988759]
[1749504020465,2.20288324,109440.0,109430.0,0.86388759]
[1749504020963,2.25488324,109440.0,109430.0,0.86388759]
[1749504021469,2.20284324,109440.0,109430.0,0.86388759]
[1749504023671,2.02007764,109440.0,109430.0,0.86388759]
[1749504023863,2.20272344,109440.0,109430.0,0.86388759]
[1749504024673,1.73528344,109440.0,109430.0,0.86388759]
[1749504024866,1.96753764,109440.0,109430.0,0.86388759]
[1749504025171,1.50053764,109440.0,109430.0,0.97615087]
[1749504025367,1.96753764,109440.0,109430.0,0.97615087]
[1749504026270,1.96793764,109440.0,109430.0,0.97615087]
[1749504026969,1.96793764,109440.0,109430.0,0.76928158]
[1749504027178,1.96793764,109440.0,109430.0,0.97615087]
[1749504027672,2.15058344,109440.0,109430.0,0.97615087]
[1749504028073,1.96793764,109440.0,109430.0,0.97615087]
[1749504028568,2.15058344,109440.0,109430.0,0.97615087]
[1749504029075,2.15042344,109440.0,109430.0,0.97615087]
[1749504029874,1.96777764,109440.0,109430.0,0.97615087]
[1749504030370,2.15042344,109440.0,109430.0,0.97615087]
[1749504030676,1.96773764,109440.0,109430.0,0.97615087]
[1749504030873,2.15038344,109440.0,109430.0,0.97615087]
[1749504031774,2.15038344,109440.0,109430.0,0.98985087]
[1749504032873,2.15038344,109440.0,109430.0,0.78298158]
[1749504033174,2.15038344,109440.0,109430.0,0.98985087]
[1749504033573,2.15038344,109440.0,109430.0,0.78298158]
[1749504033873,2.15038344,109440.0,109430.0,0.98985087]
[1749504034278,2.15038344,109440.0,109430.0,0.78298158]
[1749504034476,1.96773764,109440.0,109430.0,0.98985087]
[1749504034676,2.15038334,109440.0,109430.0,0.98985087]
[1749504036671,2.15038334,109440.0,109430.0,0.78298158]
[1749504036876,2.25368334,109440.0,109430.0,0.88135087]
[1749504037870,2.30498334,109440.0,109430.0,0.88135087]
[1749504038275,2.51185263,109440.0,109430.0,0.31368158]
[1749504038471,2.91340642,109440.0,109430.0,0.2014183]
[1749504038871,2.55260642,109440.0,109430.0,0.2014183]
[1749504039876,2.91340642,109440.0,109430.0,0.2014183]
[1749504040880,2.91340642,109440.0,109430.0,0.0187566]
[1749504041081,2.91340642,109440.0,109430.0,0.2014191]
[1749504041281,2.91340642,109440.0,109430.0,0.0187566]
[1749504041477,2.91340642,109440.0,109430.0,0.2014191]
[1749504041688,2.55260642,109440.0,109430.0,0.2014191]
[1749504041881,2.91340642,109440.0,109430.0,0.2014191]
[1749504042778,2.91340642,109440.0,109430.0,0.0187566]
[1749504043471,3.46286894,109440.0,109430.0,0.0187566]
[1749504043676,1.81116894,109440.0,109430.0,0.0187566]
[1749504044481,2.06116894,109440.0,109430.0,0.0187566]
[1749504045376,2.00436206,109440.0,109430.0,0.0187566]
[1749504045780,2.00436206,109440.0,109430.0,0.0147]
[1749504046176,2.06116894,109440.0,109430.0,0.0147]
[1749504046478,2.00436206,109440.0,109430.0,0.0147]
[1749504046875,2.00436206,109440.0,109430.0,0.0187566]
[1749504048287,1.54749277,109440.0,109430.0,0.0187566]
[1749504049085,0.1827292,109390.0,109380.0,0.68172552]
[1749504049381,0.7728892,109390.0,109380.0,0.88859481]
[1749504049577,0.8268892,109390.0,109380.0,0.94339481]
[1749504049779,0.8268892,109390.0,109380.0,0.99869481]
[1749504050181,0.8268892,109390.0,109380.0,1.00269481]
[1749504050384,0.8268892,109390.0,109380.0,1.00769481]
[1749504050580,0.8268892,109390.0,109380.0,0.64689481]
[1749504050887,0.7878892,109390.0,109380.0,1.00769481]
[1749504051389,0.7878892,109390.0,109380.0,1.01226481]
[1749504052685,0.7878892,109390.0,109380.0,0.80539552]
[1749504052985,0.85928577,109390.0,109380.0,1.01226481]